bitfinex/quotes_SOLUSD_20220216
["timestamp","ask_amount","ask_price","bid_price","bid_amount"]
[1644985172835,29.92561869,102.08,102.0,35.0636544]
[1644985173836,44.62781869,102.08,102.0,35.0636544]
[1644985174336,44.62781869,102.08,101.97,47.2032]
[1644985175037,44.62781869,102.08,101.96,26.4945]
[1644985175237,44.62781869,102.08,101.97,45.04356951]
[1644985176041,44.62781869,102.08,101.97,59.74766951]
[1644985176738,142.78781869,102.08,101.97,59.74766951]
[1644985176938,44.62781869,102.08,101.97,45.04356951]
[1644985177138,47.04558759,102.08,101.97,45.04356951]
[1644985177638,145.20558759,102.08,101.97,45.04356951]
[1644985177938,44.62781869,102.08,101.97,45.04356951]
[1644985178339,44.62781869,102.08,101.97,59.74776951]
[1644985178541,142.78781869,102.08,101.97,59.74776951]
[1644985178738,44.62781869,102.08,101.97,59.74776951]
[1644985181145,142.78781869,102.08,101.97,59.74776951]
[1644985181343,44.62781869,102.08,101.97,14.7042]
[1644985182044,44.62781869,102.08,101.95,14.7066]
[1644985182247,11.79,102.07,101.95,14.7066]
[1644985182443,14.7075,102.04,101.96,48.17558075]
[1644985182644,29.7493288,102.03,101.96,48.17558075]
[1644985183346,14.7075,102.04,101.96,48.17558075]
[1644985183546,14.7075,102.04,101.96,62.88168075]
[1644985184354,50.3272626,102.04,101.96,62.88168075]
[1644985186253,14.7075,102.04,101.96,62.88168075]
[1644985187265,50.18322724,102.06,101.96,62.88168075]
[1644985187466,50.18322724,102.06,101.96,65.29944965]
[1644985187860,14.7043,102.06,101.96,175.24944965]
[1644985188063,14.7043,102.06,101.96,77.08944965]
[1644985188261,14.7043,102.06,101.96,62.88168075]
[1644985188869,28.15508125,102.05,101.96,62.88168075]
[1644985189065,14.7067,102.04,101.96,62.88168075]
[1644985189873,8.95512375,102.03,101.96,62.88168075]
[1644985190882,23.66292375,102.03,101.96,62.88168075]
[1644985191283,23.66292375,102.03,101.94,49.8269689]
[1644985191490,121.82292375,102.03,101.94,49.8269689]
[1644985191687,121.82292375,102.03,101.94,47.4092]
[1644985191887,25.01137604,102.03,101.91,13.17400783]
[1644985192088,1.34845229,102.02,101.9,80.83937673]
[1644985192286,14.7123,101.99,101.92,2.4177689]
[1644985192486,14.7123,101.99,101.93,48.14851975]
[1644985192686,49.041,102.02,101.93,48.14851975]
[1644985192886,49.041,102.02,101.93,50.56628865]
[1644985193386,14.7108,102.0,101.93,48.14851975]
[1644985195590,21.57039789,101.99,101.93,48.14851975]
[1644985195791,21.57039789,101.99,101.9,1.38400783]
[1644985195995,21.57039789,101.99,101.89,39.9819689]
[1644985196195,21.57039789,101.99,101.89,22.8486]
[1644985196590,14.7133,101.99,101.89,22.8486]
[1644985196794,14.7133,101.99,101.89,71.8904]
[1644985197190,14.7133,101.99,101.89,74.5581689]
[1644985197592,14.7133,101.99,101.9,39.73023205]
[1644985198092,14.7133,101.99,101.9,57.11330095]
[1644985200099,14.7133,101.99,101.92,45.03415785]
[1644985201101,63.7828,102.0,101.92,47.45192675]
[1644985201700,14.7105,102.0,101.92,62.16502675]
[1644985201904,1.34845229,102.03,101.92,62.16502675]
[1644985202103,1.34845229,102.03,101.93,98.16]
[1644985202302,14.7091,102.01,101.93,98.16]
[1644985202501,14.7091,102.01,101.93,100.5777689]
[1644985203002,14.7091,102.01,101.94,48.37056009]
[1644985203403,26.78085896,102.0,101.94,48.37056009]
[1644985203607,26.78085896,102.0,101.94,63.07996009]
[1644985203802,41.49185896,102.0,101.94,63.07996009]
[1644985204004,41.49185896,102.0,101.91,2.4177689]
[1644985204409,41.49185896,102.0,101.9,24.4156]
[1644985205005,14.711,102.0,101.93,14.7116]
[1644985206110,14.711,102.0,101.94,36.60484435]
[1644985206810,2.28639545,101.99,101.94,36.60484435]
[1644985207012,16.99909545,101.99,101.94,36.60484435]
[1644985207408,14.7127,101.99,101.94,36.60484435]
[1644985207909,14.7127,101.99,101.93,14.7116]
[1644985208810,14.7127,101.99,101.92,14.7134]
[1644985209010,27.60474733,101.98,101.92,14.7134]
[1644985209212,27.60474733,101.98,101.92,14.6586648]
[1644985209440,42.31884733,101.98,101.92,14.6586648]
[1644985209616,42.31884733,101.98,101.92,52.79445794]
[1644985209811,14.7141,101.98,101.92,52.79445794]
[1644985210612,14.7141,101.98,101.91,14.7147]
[1644985210816,14.7141,101.98,101.9,24.4156]
[1644985211217,14.7141,101.98,101.88,3.80177673]
[1644985211423,124.6641,101.98,101.88,2.4177689]
[1644985211714,98.16,101.96,101.86,62.91030941]
[1644985212015,14.7222,101.93,101.85,79.3111]
[1644985212218,14.7222,101.93,101.83,540.88508908]
[1644985212413,124.6722,101.93,101.83,540.88508908]
[1644985212816,30.22889964,101.92,101.84,37.82977208]
[1644985213015,42.01889964,101.92,101.84,36.82977208]
[1644985213229,22.60780536,101.9,101.84,36.82977208]
[1644985213623,22.60780536,101.9,101.83,554.22728125]
[1644985213824,22.60780536,101.9,101.83,14.7262]
[1644985214624,22.60780536,101.9,101.83,58.64078203]
[1644985214828,22.60780536,101.9,101.83,43.91458203]
[1644985216227,14.7265,101.9,101.83,43.91458203]
[1644985216426,14.7265,101.9,101.83,58.64088203]
[1644985216626,14.7265,101.9,101.83,61.05865093]
[1644985216827,14.7265,101.9,101.83,58.64088203]
[1644985217851,39.5595,101.92,101.83,156.80088203]
[1644985218049,24.8819,101.94,101.83,66.19865093]
[1644985218050,39.0219,101.94,101.83,66.19865093]
[1644985218248,39.0219,101.94,101.83,164.35865093]
[1644985218948,14.7212,101.93,101.83,164.35865093]
[1644985219548,14.7212,101.93,101.83,164.60865093]
[1644985219754,23.5751,101.97,101.85,98.16]
[1644985219955,23.5751,101.97,101.88,14.7175]
[1644985219956,14.7184,101.96,101.88,14.7175]
[1644985220256,47.916,101.98,101.88,21.1055]
[1644985220652,1.54506293,101.97,101.89,42.8646839]
[1644985221052,16.26226293,101.97,101.9,14.7162]
[1644985221453,16.26226293,101.97,101.89,42.8646839]
[1644985222459,16.26226293,101.97,101.89,57.5821839]
[1644985225458,14.7172,101.97,101.89,57.5821839]
[1644985226359,112.8772,101.97,101.89,42.8646839]
[1644985226559,14.7211,101.94,101.87,23.6118]
[1644985226759,14.7211,101.94,101.85,72.3704]
[1644985227158,14.7211,101.94,101.85,23.3056]
[1644985227560,14.7211,101.94,101.86,37.77810002]
[1644985227561,18.68287569,101.94,101.86,37.77810002]
[1644985227761,18.68287569,101.94,101.86,52.50000002]
[1644985227960,116.84287569,101.94,101.83,2.4177689]
[1644985228158,116.84287569,101.94,101.81,1.63889447]
[1644985228159,178.45944459,101.94,101.81,1.63889447]
[1644985228558,178.45944459,101.94,101.81,0.25488664]
[1644985228962,178.45944459,101.94,101.83,34.30685823]
[1644985229159,80.29944459,101.94,101.83,34.30685823]
[1644985229359,77.88167569,101.94,101.83,34.30685823]
[1644985230864,77.88167569,101.94,101.84,14.7248]
[1644985231061,77.88167569,101.94,101.85,36.10326161]
[1644985231459,176.04167569,101.94,101.85,36.10326161]
[1644985231663,176.04167569,101.94,101.82,22.6]
[1644985232264,178.45944459,101.94,101.82,37.328]
[1644985232464,178.45944459,101.94,101.82,14.728]
[1644985232667,203.93658992,101.94,101.81,39.06668528]
[1644985232971,218.71504054,101.94,101.81,39.06668528]
[1644985233669,98.16,101.92,101.81,39.06668528]
[1644985233866,14.7304,101.89,101.81,53.79588528]
[1644985234066,3.96177569,101.88,101.81,53.79588528]
[1644985235267,14.7295,101.87,101.81,0.25488664]
[1644985236168,29.77731276,101.86,101.81,0.25488664]
[1644985236369,14.7329,101.85,101.81,0.25488664]
[1644985236868,49.1064,101.88,101.81,0.25488664]
[1644985237471,14.7307,101.86,101.81,0.25488664]
[1644985237670,49.1064,101.88,101.82,42.0]
[1644985237871,11.79,101.91,101.82,48.172]
[1644985238074,11.79,101.93,101.82,48.172]
[1644985238273,99.1559689,101.94,101.82,48.172]
[1644985238473,47.6572,101.94,101.82,48.172]
[1644985238672,37.05107823,101.9,101.83,40.97894259]
[1644985238873,11.79,101.93,101.83,40.97894259]
[1644985239875,11.79,101.93,101.83,55.70544259]
[1644985240073,77.1703584,101.94,101.83,55.70544259]
[1644985240871,77.1703584,101.94,101.83,153.86544259]
[1644985241673,47.6572,101.94,101.83,153.86544259]
[1644985241873,14.7241,101.92,101.83,154.11544259]
[1644985242479,47.6572,101.94,101.83,154.11544259]
[1644985242686,24.70315229,101.96,101.83,156.53321149]
[1644985242881,24.70315229,101.96,101.86,36.79604116]
[1644985242882,23.3547,101.96,101.86,36.79604116]
[1644985243080,14.7188,101.95,101.88,14.7182]
[1644985243300,14.7188,101.95,101.89,45.30811123]
[1644985243696,1.34845229,101.97,101.89,45.30811123]
[1644985243897,1.34845229,101.98,101.89,45.30811123]
[1644985244101,16.06295229,101.98,101.89,60.02601123]
[1644985244499,16.06295229,101.98,101.89,158.18601123]
[1644985244699,14.7145,101.98,101.89,158.18601123]
[1644985246702,1.34845229,101.99,101.89,158.18601123]
[1644985246703,14.7132,101.99,101.89,158.18601123]
[1644985246901,1.34845229,102.01,101.89,170.22601123]
[1644985247104,1.34845229,102.01,101.89,195.90618013]
[1644985247406,2.35889245,102.01,101.89,195.90618013]
[1644985247607,2.35889245,102.01,101.89,205.10276174]
[1644985247803,3.70734474,102.01,101.89,195.90618013]
[1644985248204,1.34845229,102.01,101.89,195.90618013]
[1644985248407,1.34845229,102.02,101.89,195.90618013]
[1644985249003,14.7117,102.01,101.89,195.65618013]
[1644985249208,35.38445958,102.0,101.89,195.65618013]
[1644985249404,35.38445958,102.0,101.89,97.49618013]
[1644985249704,35.38445958,102.0,101.89,95.07841123]
[1644985249906,36.73291187,102.0,101.89,95.07841123]
[1644985250715,53.86348077,102.0,101.89,95.07841123]
[1644985251108,76.67698077,102.0,101.89,95.07841123]
[1644985251506,76.67698077,102.0,101.89,83.28841123]
[1644985251905,174.83698077,102.0,101.89,83.28841123]
[1644985252107,186.62698077,102.0,101.89,83.28841123]
[1644985252306,14.718,101.97,101.89,83.28841123]
[1644985253106,172.49155229,101.99,101.89,45.30811123]
[1644985253305,74.33155229,101.99,101.89,45.30811123]
[1644985253504,14.7189,101.96,101.89,45.30811123]
[1644985254106,74.33155229,101.99,101.89,45.30811123]
[1644985254307,26.84475014,101.98,101.89,45.30811123]
[1644985254508,14.7168,101.97,101.89,60.02531123]
[1644985256509,39.98685229,101.99,101.89,158.18531123]
[1644985256910,38.6384,101.99,101.89,158.43531123]
[1644985257112,38.6384,101.99,101.89,158.18531123]
[1644985257310,38.6384,101.99,101.89,158.43531123]
[1644985257511,38.6384,101.99,101.89,158.18531123]
[1644985258012,38.6384,101.99,101.89,172.64308013]
[1644985258215,23.9232,101.99,101.89,172.64308013]
[1644985260513,23.9232,101.99,101.89,172.39308013]
[1644985260715,23.9232,101.99,101.89,74.23308013]
[1644985260914,23.9232,101.99,101.89,71.81531123]
[1644985261998,38.6367,101.99,101.89,71.81531123]
[1644985262927,38.6367,101.99,101.89,169.97531123]
[1644985263529,14.7135,101.99,101.89,172.64308013]
[1644985263730,1.34845229,102.02,101.89,186.75835325]
[1644985263932,1.34845229,102.02,101.89,219.20725325]
[1644985264131,51.07188634,102.03,101.89,219.20725325]
[1644985264931,14.7089,102.02,101.89,219.20725325]
[1644985265433,16.05735229,102.02,101.89,219.20725325]
[1644985266037,14.7089,102.02,101.89,219.20725325]
[1644985267237,14.7089,102.02,101.89,228.40383486]
[1644985267238,16.05735229,102.02,101.89,228.40383486]
[1644985267637,1.34845229,102.01,101.89,228.40383486]
[1644985267838,16.05735229,102.02,101.89,228.40383486]
[1644985268038,10.95327095,102.01,101.89,220.12683486]
[1644985268242,10.95327095,102.01,101.89,221.51084269]
[1644985268738,16.05735229,102.02,101.89,221.51084269]
[1644985268943,1.34845229,102.02,101.89,222.03084269]
[1644985269143,24.05445229,102.03,101.91,98.16]
[1644985269340,1.34845229,102.03,101.95,98.16]
[1644985269560,1.34845229,102.04,101.95,98.16]
[1644985269760,1.34845229,102.04,101.96,44.83453559]
[1644985270166,1.34845229,102.04,101.96,145.41230449]
[1644985270363,1.34845229,102.04,101.98,98.16]
[1644985270563,1.34845229,102.05,101.98,98.41]
[1644985270964,1.34845229,102.06,101.99,2.4177689]
[1644985271163,1.34845229,102.06,102.0,38.82190969]
[1644985271567,1.34845229,102.06,102.0,136.98190969]
[1644985271863,1.34845229,102.06,102.0,151.68090969]
[1644985272062,1.34845229,102.06,102.0,154.09867859]
[1644985272263,1.34845229,102.06,102.0,55.93867859]
[1644985272464,1.34845229,102.07,102.0,53.52090969]
[1644985272666,1.34845229,102.06,102.0,53.52090969]
[1644985272867,1.34845229,102.07,102.0,53.52090969]
[1644985273064,1.34845229,102.07,102.0,151.68090969]
[1644985273270,1.34845229,102.07,102.0,53.52090969]
[1644985273571,34.24071663,102.08,102.0,53.77090969]
[1644985273870,1.34845229,102.07,102.0,53.77090969]
[1644985274774,34.24071663,102.08,102.0,53.77090969]
[1644985274971,1.34845229,102.08,102.0,53.77090969]
[1644985275173,1.34845229,102.08,102.0,151.93090969]
[1644985276572,11.3696787,102.08,102.0,53.77090969]
[1644985276774,11.3696787,102.08,102.0,53.52090969]
[1644985277175,1.34845229,102.08,102.0,53.52090969]
[1644985277872,1.34845229,102.08,102.01,98.16]
[1644985278074,1.34845229,102.08,102.03,14.6968]
[1644985278273,1.34845229,102.08,102.04,48.21466391]
[1644985278473,26.48317389,102.09,102.01,2.4177689]
[1644985278878,41.18287389,102.09,102.01,2.4177689]
[1644985279074,1.34845229,102.08,102.01,2.4177689]
[1644985279278,1.34845229,102.08,102.0,14.7016]
[1644985279476,1.34845229,102.08,102.01,44.4920357]
[1644985280275,16.04995229,102.08,102.01,59.1918357]
[1644985280479,30.34133563,102.07,101.99,25.4556689]
[1644985280711,31.68978792,102.07,101.99,25.4556689]
[1644985281276,31.68978792,102.07,101.99,23.0379]
[1644985281479,1.34845229,102.07,102.0,40.7871468]
[1644985281982,16.05025229,102.07,102.0,40.7871468]
[1644985282578,31.60550314,102.06,102.0,40.7871468]
[1644985283180,1.34845229,102.06,102.0,40.7871468]
[1644985283578,24.6974,102.08,102.0,40.7871468]
[1644985283579,1.34845229,102.07,102.0,40.7871468]
[1644985283980,14.7037,102.06,102.0,40.7871468]
[1644985284380,16.05215229,102.06,102.0,40.7871468]
[1644985288511,1.34845229,102.06,102.0,40.7871468]
[1644985288708,16.04975229,102.07,102.0,40.7871468]
[1644985289312,1.34845229,102.07,102.0,55.4887468]
[1644985289512,1.34845229,102.07,102.0,156.0665157]
[1644985289712,26.04585229,102.08,102.0,156.3165157]
[1644985290109,24.6974,102.08,102.0,156.3165157]
[1644985292010,24.6974,102.08,102.0,156.0665157]
[1644985292212,39.3973,102.08,102.0,55.4887468]
[1644985292411,40.74575229,102.08,102.0,55.4887468]
[1644985292611,1.34845229,102.07,102.0,55.4887468]
[1644985293213,1.34845229,102.06,102.0,55.4887468]
[1644985293411,16.05105229,102.06,102.0,55.4887468]
[1644985294714,21.66418935,102.06,102.0,40.7871468]
[1644985294913,16.05105229,102.06,102.0,40.7871468]
[1644985295510,1.34845229,102.05,102.0,40.7871468]
[1644985297919,1.34845229,102.04,102.0,40.7871468]
[1644985298419,1.34845229,102.05,102.0,40.7871468]
[1644985298820,1.34845229,102.04,102.0,40.7871468]
[1644985299929,1.34845229,102.04,101.99,14.7031]
[1644985300532,1.34845229,102.04,101.96,14.12]
[1644985300730,1.34845229,102.04,101.95,74.0565689]
[1644985300930,1.34845229,102.03,101.95,71.6388]
[1644985301130,35.65693047,102.03,101.96,46.2200554]
[1644985301933,50.36343047,102.03,101.97,14.7062]
[1644985302134,50.36343047,102.03,101.98,45.05271094]
[1644985302734,16.05495229,102.03,101.98,45.05271094]
[1644985303635,16.05495229,102.03,101.97,14.7062]
[1644985304637,16.05495229,102.03,101.97,61.01105798]
[1644985304837,5.35247418,102.02,101.97,61.01105798]
[1644985305043,5.35247418,102.02,101.94,48.8993]
[1644985305240,14.7097,102.01,101.94,48.8993]
[1644985305438,16.05815229,102.01,101.92,14.12]
[1644985305938,32.75773082,102.0,101.93,40.45379968]
[1644985307842,14.712,101.99,101.93,55.16619968]
[1644985310152,1.34845229,102.02,101.93,155.99396858]
[1644985310349,1.34845229,102.02,101.93,57.58396858]
[1644985310550,16.5377689,102.02,101.93,40.45379968]
[1644985310846,1.34845229,102.0,101.87,1.38400783]
[1644985311047,15.46845229,102.0,101.87,46.898]
[1644985311248,46.9183,101.99,101.87,49.3157689]
[1644985311549,1.34845229,102.0,101.91,98.16]
[1644985311749,1.34845229,102.0,101.93,98.16]
[1644985311948,46.9183,102.04,101.92,51.35483047]
[1644985311949,1.34845229,102.03,101.92,51.35483047]
[1644985312148,1.34845229,102.03,101.92,51.60483047]
[1644985312353,1.34845229,102.03,101.94,2.4177689]
[1644985312654,48.26675229,102.04,101.94,2.6677689]
[1644985312848,1.34845229,102.03,101.94,2.6677689]
[1644985313050,48.26675229,102.04,101.95,42.83709406]
[1644985313248,48.26675229,102.04,101.96,14.7071]
[1644985313450,48.26675229,102.04,101.96,17.1248689]
[1644985314252,48.26675229,102.04,101.97,45.96397646]
[1644985314483,48.26675229,102.04,101.98,14.7039]
[1644985314652,1.34845229,102.04,101.98,14.7039]
[1644985314852,1.34845229,102.05,101.98,14.7039]
[1644985315051,1.34845229,102.05,101.98,17.1216689]
[1644985315450,1.34845229,102.05,101.99,50.66147848]
[1644985315653,1.34845229,102.05,102.01,46.71016126]
[1644985316053,1.34845229,102.05,101.97,149.5831689]
[1644985316453,1.34845229,102.05,101.97,2.4177689]
[1644985316655,1.34845229,102.04,101.95,25.9922689]
[1644985316854,1.34845229,102.03,101.95,2.4177689]
[1644985317055,11.86798462,102.03,101.95,2.4177689]
[1644985317255,126.56575352,102.03,101.94,38.10460864]
[1644985317454,26.90377034,102.0,101.91,2.4177689]
[1644985317654,26.90377034,102.0,101.9,22.5624]
[1644985318454,26.90377034,102.0,101.91,34.39572728]
[1644985318758,14.7126,101.99,101.91,49.11042728]
[1644985320359,2.67333423,101.98,101.91,49.11042728]
[1644985320556,14.7149,101.97,101.91,49.11042728]
[1644985320956,24.3436,101.99,101.91,49.11042728]
[1644985321984,14.7134,101.98,101.91,14.7147]
[1644985322959,49.40751637,101.98,101.91,55.63463434]
[1644985323259,49.40751637,101.98,101.91,14.7147]
[1644985323460,49.40751637,101.98,101.87,23.94640783]
[1644985323661,49.40751637,101.98,101.87,36.6824]
[1644985324259,49.40751637,101.98,101.88,34.21674233]
[1644985324858,49.40751637,101.98,101.86,14.12]
[1644985325063,38.5341,101.97,101.85,1.38400783]
[1644985325263,14.722,101.94,101.86,6.0]
[1644985325859,3.41608863,101.93,101.86,37.67228666]
[1644985326062,3.41608863,101.93,101.86,58.39378666]
[1644985326763,49.0731,101.95,101.86,52.39378666]
[1644985326964,14.7213,101.93,101.86,52.39378666]
[1644985327565,49.64570472,101.93,101.86,52.39378666]
[1644985330268,14.7213,101.93,101.86,52.39378666]
[1644985330470,14.7213,101.93,101.86,14.7215]
[1644985330672,14.7213,101.93,101.83,1.38400783]
[1644985330870,14.7213,101.93,101.82,52.40327673]
[1644985331270,14.7213,101.93,101.82,48.6015]
[1644985331472,53.70002897,101.92,101.83,39.02354499]
[1644985331673,24.00667603,101.9,101.83,39.02354499]
[1644985332874,24.00667603,101.9,101.83,53.74954499]
[1644985333289,14.7259,101.9,101.83,53.74954499]
[1644985334580,22.44073204,101.9,101.83,39.02354499]
[1644985337994,14.7259,101.9,101.83,39.02354499]
[1644985338898,14.7259,101.9,101.83,53.74894499]
[1644985339899,48.19142478,101.9,101.83,39.02354499]
[1644985340299,14.7259,101.9,101.83,39.02354499]
[1644985341305,31.15339965,101.89,101.83,39.02354499]
[1644985341499,45.88149965,101.89,101.83,39.02354499]
[1644985341999,14.7281,101.89,101.83,39.02354499]
[1644985344004,14.7251,101.9,101.83,39.02354499]
[1644985344401,14.7251,101.9,101.81,22.97768664]
[1644985344605,14.7251,101.9,101.81,37.70488664]
[1644985345103,14.7251,101.9,101.81,37.95488664]
[1644985345504,14.7251,101.9,101.82,39.3480803]
[1644985345705,14.7251,101.9,101.83,14.7255]
[1644985345905,14.7251,101.9,101.84,45.3655406]
[1644985347707,14.7251,101.9,101.84,60.0898406]
[1644985350624,44.54364063,101.9,101.84,45.3655406]
[1644985351023,44.54364063,101.9,101.81,24.36169447]
[1644985351225,44.54364063,101.9,101.81,1.63889447]
[1644985352036,44.54364063,101.9,101.81,38.3766975]
[1644985352428,44.54364063,101.9,101.81,36.99268967]
[1644985352826,68.52854063,101.9,101.81,51.72158967]
[1644985354233,68.52854063,101.9,101.81,53.1055975]
[1644985354831,68.52854063,101.9,101.81,51.72158967]
[1644985355629,68.52854063,101.9,101.81,36.99268967]
[1644985357630,68.52854063,101.9,101.81,51.72178967]
[1644985359832,68.52854063,101.9,101.81,53.1057975]
[1644985360933,68.52854063,101.9,101.81,51.72178967]
[1644985362336,68.52854063,101.9,101.81,36.99268967]
[1644985363540,82.64854063,101.9,101.81,36.99268967]
[1644985363840,82.64854063,101.9,101.81,51.72178967]
[1644985365638,82.64854063,101.9,101.81,53.1057975]
[1644985365840,82.64854063,101.9,101.81,51.72178967]
[1644985367944,82.64854063,101.9,101.81,14.98398664]
[1644985368142,83.99699292,101.9,101.81,0.25488664]
[1644985368945,83.99699292,101.9,101.81,38.96993606]
[1644985369445,182.15699292,101.9,101.81,0.25488664]
[1644985369648,1.34845229,101.89,101.81,0.25488664]
[1644985369846,14.7351,101.87,101.81,0.25488664]
[1644985370045,52.8318,101.87,101.81,0.25488664]
[1644985370246,8.29166437,101.86,101.81,0.25488664]
[1644985370446,22.41166437,101.86,101.81,0.25488664]
[1644985370968,14.7351,101.85,101.81,0.25488664]
[1644985385174,14.7351,101.85,101.81,0.25488664]
[1644985392687,14.7294,101.86,101.81,0.25488664]
[1644985392886,25.32365229,101.9,101.81,14.98518664]
[1644985393083,71.9242,101.9,101.83,98.16]
[1644985393286,1.34845229,101.91,101.83,98.16]
[1644985393486,1.34845229,101.92,101.83,98.16]
[1644985393683,22.8316,101.93,101.84,2.4177689]
[1644985393885,14.7206,101.93,101.85,98.16]
[1644985394087,14.7206,101.93,101.87,14.7206]
[1644985394685,1.34845229,101.95,101.87,112.8806]
[1644985394885,1.34845229,101.95,101.87,115.2983689]
[1644985395088,89.50905229,101.96,101.87,115.2983689]
[1644985395492,89.50905229,101.96,101.87,140.1569689]
[1644985395886,14.7197,101.94,101.87,41.9969689]
[1644985396489,14.7197,101.94,101.87,39.5792]
[1644985399212,14.7197,101.94,101.87,137.7392]
[1644985402615,14.7197,101.94,101.87,39.5792]
[1644985403617,14.7197,101.94,101.87,137.7392]
[1644985407318,14.7179,101.95,101.87,137.7392]
[1644985407521,24.972,101.96,101.87,140.1569689]
[1644985407917,63.1796,101.98,101.87,140.1569689]
[1644985408118,38.86595229,101.99,101.87,154.5269689]
[1644985408321,38.86595229,101.99,101.89,98.16]
[1644985408520,14.7149,101.97,101.91,112.8743]
[1644985408918,14.7149,101.97,101.91,115.2920689]
[1644985409118,60.1074,101.99,101.91,115.2920689]
[1644985409921,45.9874,101.99,101.91,115.2920689]
[1644985410320,60.7,101.99,101.91,115.2920689]
[1644985414427,14.711,102.0,101.91,115.2920689]
[1644985414630,2.4177689,102.03,101.95,14.7076]
[1644985414631,1.34845229,102.03,101.95,14.7076]
[1644985414829,25.47655229,102.05,101.96,98.16]
[1644985415032,24.1281,102.05,101.97,98.16]
[1644985415531,24.1281,102.05,101.98,35.24687151]
[1644985415729,14.7052,102.04,101.98,49.95167151]
[1644985418135,38.8321,102.05,101.98,148.11167151]
[1644985418435,24.1281,102.05,101.98,148.11167151]
[1644985419635,24.1281,102.05,101.98,49.95167151]
[1644985419835,24.1281,102.05,101.98,14.7048]
[1644985420037,24.1281,102.05,101.97,14.7062]
[1644985420237,31.1861,102.05,101.96,22.6163]
[1644985420638,45.8897,102.05,101.96,22.6163]
[1644985420939,45.8897,102.05,101.97,38.51670066]
[1644985422240,38.8317,102.05,101.97,38.51670066]
[1644985422640,38.8317,102.05,101.98,98.16]
[1644985422844,38.8317,102.05,101.97,38.51670066]
[1644985423042,24.1281,102.05,101.97,87.52270066]
[1644985423264,14.7018,102.06,101.97,87.52270066]
[1644985423668,14.7018,102.06,101.99,14.7024]
[1644985423864,14.7018,102.06,101.98,23.5055]
[1644985424966,14.7018,102.06,101.98,38.2104]
[1644985426872,14.7018,102.06,101.98,136.3704]
[1644985428572,62.6992,102.07,101.99,2.4177689]
[1644985428777,62.6992,102.07,102.02,38.20812825]
[1644985430776,14.699,102.08,102.02,52.90742825]
[1644985430981,14.699,102.08,102.02,151.06742825]
[1644985431184,14.699,102.08,102.02,52.90742825]
[1644985432682,14.699,102.08,102.02,38.20812825]
[1644985432884,14.699,102.08,102.0,23.3753]
[1644985433083,45.6159,102.08,102.0,22.3753]
[1644985433786,45.6159,102.08,101.98,16.5377689]
[1644985433985,2.4177689,102.07,101.96,49.0127]
[1644985434189,14.7053,102.04,101.96,49.0127]
[1644985434789,14.7053,102.04,101.97,40.07942594]
[1644985435390,14.7053,102.04,101.97,42.49719484]
[1644985435594,14.7053,102.04,101.97,54.78532594]
[1644985435797,14.7053,102.04,101.97,40.07942594]
[1644985437993,45.78663555,102.04,101.97,40.07942594]
[1644985439195,61.25508784,102.04,101.97,40.07942594]
[1644985439795,61.25508784,102.04,101.95,14.7086]
[1644985440697,14.7095,102.01,101.95,14.7086]
[1644985440899,14.7095,102.01,101.96,36.87480526]
[1644985441299,24.5357,102.03,101.96,51.58230526]
[1644985441500,1.34845229,102.04,101.96,149.74230526]
[1644985441700,1.34845229,102.05,101.97,23.3097]
[1644985441902,14.7026,102.05,101.97,123.8874689]
[1644985442320,14.7026,102.05,101.98,2.4177689]
[1644985442820,14.7026,102.05,101.99,14.7025]
[1644985443025,14.7026,102.05,101.99,112.8625]
[1644985443227,14.7026,102.05,102.0,2.4177689]
[1644985443520,16.04965229,102.06,102.0,2.4177689]
[1644985443919,14.7012,102.06,102.01,37.56068519]
[1644985444521,16.04965229,102.06,102.01,37.56068519]
[1644985446921,1.34845229,102.05,102.01,37.56068519]
[1644985447224,16.05205229,102.05,102.01,37.56068519]
[1644985448323,14.7036,102.05,102.01,37.56068519]
[1644985448522,16.05205229,102.05,102.01,37.56068519]
[1644985449121,14.7036,102.05,102.01,37.56068519]
[1644985450623,16.04935229,102.06,102.01,37.56068519]
[1644985451533,49.003,102.09,102.02,57.0]
[1644985451734,136.6881,102.13,102.02,57.0]
[1644985451735,14.12,102.14,102.02,57.0]
[1644985451936,13.9032061,102.16,102.03,112.28]
[1644985452231,0.00142102,102.12,102.03,316.46518104]
[1644985452434,2.72284204,102.16,102.06,44.58696658]
[1644985452632,2.72284204,102.17,102.09,35.33960686]
[1644985452831,2.83663019,102.19,102.1,112.28]
[1644985453030,0.11255152,102.19,102.1,126.965]
[1644985453238,1.36230311,102.18,102.1,303.765]
[1644985453428,1.36230311,102.18,102.1,343.73435755]